Cogmind - Beta 16.1 @@@ ROGUE MODE // 2026.02.20 @ 16:58:43 Player: GrumpyTiger Result: Destroyed by S-10 Pest with Light Assault Rifle Performance ------------- Evolutions (1) 500 Regions Visited (2) 400 Robots Destroyed (8) 40 Value Destroyed (181) 181 Prototype IDs (0) 0 Alien Tech Used (0) 0 Bonus (0) 0 TOTAL SCORE: 1121 Bonus ------- None Cogmind --------- Core Integrity 0/400 Matter 298/300 Energy 100/100 System Corruption 0% Temperature Cool (0) Movement Core (100) Ox1 Location -9/Materials Parts ------- > --- POWER (1) -------- (None) > --- PROPULSION (3) --- (None) > --- UTILITY (3) ------ Small Storage Unit Targeting Computer > --- WEAPON (2) ------- (None) > --- INVENTORY (8) ---- Sensor Array Peak State ------------ > --- POWER ------------ Ion Engine > --- PROPULSION ------- Aluminum Leg Aluminum Leg Aluminum Leg > --- UTILITY ---------- Heat Sink Small Storage Unit Targeting Computer > --- WEAPON ----------- Medium Laser Assault Rifle > --- INVENTORY -------- Sensor Array [Rating: 9] Favorites ----------- Power Ion Engine Engine Ion Engine Propulsion Aluminum Leg Leg Aluminum Leg Utility Small Storage Unit Device Heat Sink Storage Small Storage Unit Processor Targeting Computer Weapon Medium Laser Energy Gun Medium Laser Ballistic Gun Assault Rifle Build | -11 -10 -9 ------- Run | Yrd Mat Mat Slots Evolved 2 | . . 2 Power . | . . . Propulsion 1 | . . 1 Utility 1 | . . 1 Weapon . | . . . Parts Attached 10 | 6 2 2 Power 1 | 1 . . Engine 1 | 1 . . Core . | . . . Reactor . | . . . Propulsion 3 | 2 . 1 Treads . | . . . Leg 3 | 2 . 1 Wheel . | . . . Hover . | . . . Flight . | . . . Utility 3 | 1 1 1 Device 1 | . 1 . Storage 1 | 1 . . Processor 1 | . . 1 Hackware . | . . . Protection . | . . . Artifact . | . . . Weapon 3 | 2 1 . Energy Gun 2 | 2 . . Energy Cannon . | . . . Ballistic Gun 1 | . 1 . Ballistic Cannon . | . . . Launcher . | . . . Special Weapon . | . . . Impact Weapon . | . . . Slashing Weapon . | . . . Piercing Weapon . | . . . Special Melee Weapon . | . . . Unidentified Prototypes . | . . . Parts Lost 4 | . . 4 Power 1 | . . 1 Propulsion 1 | . . 1 Utility . | . . . Weapon 2 | . . 2 Highest Loss Streak 4 | . . 4 To Critical Strikes . | . . . Average Backups 1 | 1 1 1 Power . | . . . Propulsion . | . . . Utility . | . . 1 Weapon . | . . . Tool/Special . | . . . Unused Backups 1 | . . 1 Power . | . . . Propulsion . | . . . Utility 1 | . . 1 Weapon . | . . . Tool/Special . | . . . Average Slot Usage (%) 86 | . 93 78 Engine 12 | . 14 9 Leg 25 | . 28 23 Device 7 | . 8 7 Storage 12 | . 14 11 Processor 4 | . . 10 Energy Gun 16 | . 22 8 Ballistic Gun 6 | . 5 7 Peak Build Rating 9 | 6 7 9 Average Rating 6 | 4 6 6 On Entrance 4 | . 6 7 Avg Prop Armor Cover (%) . | . . . Naked Turns . | . . . Heaviest Build 15 | 14 15 15 Greatest Support 30 | 20 20 30 Greatest Overweight (x) 3 | . . 3 Average Overweight (x) . | . . . Largest Inventory Capacity 8 | 8 8 8 Average Capacity 7 | 7 8 8 Most Carried 5 | 5 3 2 Average Carried 1 | . 1 1 Final Capacity 8 | 8 8 8 Final Carried 3 | . 3 1 Class Distribution -------------------- 100% | Mutant Dominant Class ---------------- Mutant | -10/Materials Mutant | -9/Materials Resources | -11 -10 -9 ----------- Run | Yrd Mat Mat Matter Collected 327 | 71 218 38 Remotely . | . . . Salvage Created 363 | . 164 199 Parts 15 | . 5 10 Haulers Intercepted . | . . . Recyclers Shooed 2 | . 2 . Parts Field Recycled . | . . . Retrieved Matter . | . . . Parts Self-Destructed . | . . . Prevented . | . . . Parts Restored . | . . . Kills | -11 -10 -9 ------- Run | Yrd Mat Mat Combat Hostiles Destroyed 6 | . . 6 Guns 6 | . . 6 Classes Destroyed 4 | . 1 3 Recycler 2 | . 2 . Swarmer 2 | . . 2 Grunt 3 | . . 3 Duelist 1 | . . 1 Best Kill Streak 4 | . 2 4 Combat Bots Only 4 | . . 4 Max Kills in Single Turn 1 | . 1 1 Gunslinging . | . . . Exploded . | . . . Melee . | . . . Uniques/NPCs Destroyed . | . . . Combat | -11 -10 -9 -------- Run | Yrd Mat Mat Hostile Shots Fired 99 | . 10 89 Missed 26 | . 4 22 Hits 73 | . 6 67 Melee 9 | . . 9 Projectile 64 | . 6 58 Critical Strikes 4 | . . 4 Damage Taken 871 | . 50 821 Core 410 | . 9 401 Absorbed by Shields . | . . . Core Remaining (%) 98 | 100 96 . Volleys Fired 28 | . 4 24 Largest 2 | . 2 2 Hottest 90 | . 90 70 Shots Fired 39 | . 8 31 Gun 39 | . 8 31 Cannon . | . . . Launcher . | . . . Special . | . . . Kinetic 13 | . 3 10 Thermal 25 | . 4 21 Explosive . | . . . Electromagnetic 1 | . 1 . Robot Hit Streak 6 | . 6 6 Robot Miss Streak 2 | . 1 2 Penetration Max . | . . . Secondary Targets 1 | . . 1 Max Gunslinging Chain 1 | . . 1 Shots Hit Robots 27 | . 6 21 Core Hits 15 | . 4 11 Critical Kills . | . . . Critical Parts Destroyed . | . . . Critical Strikes 3 | . . 3 Burn 3 | . . 3 Melee Attacks . | . . . Impact . | . . . Slashing . | . . . Piercing . | . . . Sneak Attacks . | . . . Combat Hostiles . | . . . Follow-up Attacks . | . . . Damage Inflicted 363 | . 76 287 Guns 363 | . 76 287 Cannons . | . . . Explosions . | . . . Melee . | . . . Ramming . | . . . Kinetic 150 | . 27 123 Thermal 213 | . 49 164 Explosive . | . . . Electromagnetic . | . . . Impact . | . . . Slashing . | . . . Piercing . | . . . Highest Corruption . | . . . Average Corruption . | . . . Corruption Purged . | . . . Corruption Blocked . | . . . Overload Shots . | . . . Overflow Damage . | . . . Projectiles . | . . . Explosions . | . . . Melee . | . . . Knockbacks . | . . . Impact . | . . . Kinetic . | . . . Secondary . | . . . Self-Inflicted Damage . | . . . Shots . | . . . Rammed . | . . . Targets Rammed . | . . . Kicked . | . . . Crushed . | . . . Highest Temperature 32 | . 30 32 Average Temperature 12 | . 18 11 Received Heat Transfer 138 | . . 138 Siege Activations . | . . . Martial Activations . | . . . Shielding Activations . | . . . Robots Disrupted . | . . . Combat Hostiles . | . . . Robots Corrupted . | . . . Combat Hostiles . | . . . Parts Fried . | . . . Impact Corruptions . | . . . Robots Melted . | . . . Combat Hostiles . | . . . Parts Melted 1 | . . 1 Heat Transferred 851 | . 148 703 Parts Sabotaged . | . . . Parts Stolen . | . . . Parts Stripped . | . . . Power Chain Reactions . | . . . Alert | -11 -10 -9 ------- Run | Yrd Mat Mat Maximum Alert Level . | . . . Low Security (%) 100 | 100 100 100 Level 1 . | . . . Level 2 . | . . . Level 3 . | . . . Level 4 . | . . . Level 5 . | . . . High Security . | . . . Max Security . | . . . Peak Influence 70 | . 7 70 Initial . | . . . Average 8 | . . 20 Influence Increases 147 | . 17 130 Destroy 0b10 Robot/C 120 | . . 120 Destroy 0b10 Robot/NC 10 | . 10 . Destroy Leader 10 | . . 10 Successful Hack 7 | . 7 . Influence Decreases 107 | . 17 90 Time Decay 87 | . 17 70 Lost Part 20 | . . 20 Squads Dispatched 1 | . 1 . Investigation . | . . . Extermination . | . . . Reinforcement 1 | . 1 . Assault . | . . . Garrison . | . . . Intercept . | . . . Searches Triggered . | . . . Construction Impeded . | . . . Haulers Reinforced . | . . . Active Scanning Responses . | . . . Cargo Convoy Interrupts . | . . . Stealth | -11 -10 -9 --------- Run | Yrd Mat Mat Distress Signals 1 | . 1 . Communications Jammed . | . . . Distress Signals . | . . . Times Spotted 12 | . 4 8 Peak Tracking Total 5 | . 5 4 Tactical Retreats . | . . . Traps | -11 -10 -9 ------- Run | Yrd Mat Mat Traps Triggered . | . . . Indirectly . | . . . Trap Hack Attempts . | . . . Triggered . | . . . Disarmed . | . . . Reprogrammed . | . . . Reused . | . . . Traps Extracted . | . . . Installed . | . . . Triggered . | . . . Machines | -11 -10 -9 ---------- Run | Yrd Mat Mat Machines Disabled . | . . . Max in Single Turn . | . . . Machines Repaired . | . . . Machines Dismantled . | . . . Machines Sabotaged . | . . . Overloaded Fab Kills . | . . . Hacking | -11 -10 -9 --------- Run | Yrd Mat Mat Machines Accessed 3 | . 3 . Terminals 2 | . 2 . Fabricators . | . . . Repair Stations . | . . . Recycling Units 1 | . 1 . Scanalyzers . | . . . Garrison Access . | . . . Total Hacks 3 | . 3 . Successful 2 | . 2 . Failed 1 | . 1 . Catastrophic . | . . . Database Lockouts . | . . . Manual . | . . . Terminals 2 | . 2 . Fabricators . | . . . Repair Stations . | . . . Recycling Units 1 | . 1 . Scanalyzers . | . . . Garrison Access . | . . . Terminal Hacks 1 | . 1 . Security Status 1 | . 1 . Fabricator Hacks . | . . . Repair Station Hacks . | . . . Recycling Unit Hacks 1 | . 1 . Report Inventory 1 | . 1 . Scanalyzer . | . . . Garrison Access Hacks . | . . . Unauthorized Hacks . | . . . Terminals . | . . . Fabricators . | . . . Repair Stations . | . . . Recycling Units . | . . . Scanalyzers . | . . . Garrison Access . | . . . Data Cores Recovered . | . . . Used . | . . . Hacking Detections 2 | . 2 . Full Trace Events . | . . . Feedback Events . | . . . Feedback Blocked . | . . . Robot Schematics Acquired . | . . . Robots Built . | . . . Authchips . | . . . Time . | . . . Total Robot Build Rating . | . . . Part Schematics Acquired . | . . . Parts Built . | . . . Authchips . | . . . Time . | . . . Total Part Build Rating . | . . . Part Studies Acquired . | . . . Parts Repaired . | . . . Time . | . . . Parts Recycled . | . . . Recycled Matter . | . . . Retrieved Matter . | . . . Retrieved Components . | . . . Parts Scanalyzed . | . . . Part Schematics Acquired . | . . . Parts Damaged . | . . . Bothacking | -11 -10 -9 ------------ Run | Yrd Mat Mat Used RIF Installer . | . . . Robots Hacked . | . . . Non-combat . | . . . Combat . | . . . Robot Hacks Applied . | . . . Relay Couplers Released . | . . . Fabnet Peak Effective % . | . . . Robots Rewired . | . . . Allies Hacked . | . . . Hacks Repelled . | . . . Allies | -11 -10 -9 -------- Run | Yrd Mat Mat Total Allies . | . . . Largest Group . | . . . Highest-Rated Group . | . . . Highest-Rated Ally . | . . . Total Orders . | . . . Ally Attacks . | . . . Total Damage . | . . . Kills . | . . . Allies Corrupted . | . . . Allies Melted . | . . . Intel | -11 -10 -9 ------- Run | Yrd Mat Mat Active Infowar (turns) . | . . . Robot Analysis Total . | . . . Derelict Logs Recovered . | . . . Drone Launches . | . . . Drone Recoveries . | . . . Exploration | -11 -10 -9 ------------- Run | Yrd Mat Mat Turns Passed 518 | 43 266 209 Spaces Moved 325 | 33 206 86 Core 13 | 10 . 3 Treads . | . . . Legs 312 | 23 206 83 Wheels . | . . . Hover . | . . . Flight . | . . . Fastest Speed 50 | 50 120 100 Average Speed 118 | 98 120 121 Slowest Speed 200 | 120 120 200 Overloaded Moves . | . . . Propulsion Burnouts . | . . . Robots Hopped . | . . . Potential Cave-ins . | . . . Cave-ins Triggered . | . . . Exploration Rate (%) 15 | 2 36 9 Regions Visited 2 Branch Regions . Pre-discovered Areas . | . . . Known Exits Taken . | . . . Unknown Exits Taken 2 | 1 1 . Scrap Searched . | . . . Spaces Dug . | . . . Terrain Destroyed . | . . . Melee . | . . . Projectile . | . . . AOE . | . . . Terrain Rammed . | . . . Walls Destroyed . | . . . Machines Disabled . | . . . Actions | -11 -10 -9 --------- Run | Yrd Mat Mat Total 420 | 43 217 160 Wait 46 | . . 46 Move 323 | 32 205 86 Hop . | . . . Pick Up 11 | 5 5 1 Fast Attach 1 | 1 . . Attach 10 | 5 2 3 Detach . | . . . Swap . | . . . Drop 1 | . 1 . Fire 28 | . 4 24 Melee . | . . . Ram . | . . . Kick . | . . . Crush . | . . . Escape Stasis . | . . . Rewire . | . . . Trap . | . . . Miscellaneous . | . . . Route ------- -11/Scrapyard -10/Materials -9/Materials History --------- Turn | Location | Event 22 | -11/Scrapyard | Discovered new exit (range 16) 44 | -11/Scrapyard | Entered Materials 45 | -10/Materials | Met a group of wandering Federalists 291 | -10/Materials | Discovered new exit (range 12) 301 | -10/Materials | Build established: Mutant 310 | -10/Materials | Entered another Materials area 310 | -9/Materials | Evolved 2 slots: Propulsion x1, Utility x1 462 | -9/Materials | Core integrity fell below 50% 499 | -9/Materials | Core integrity fell below 20% 519 | -9/Materials | Destroyed by S-10 Pest with Light Assault Rifle Last Messages --------------- Med. Laser severed. Aluminum Leg severed. Assault Rifle destroyed. Aluminum Leg severed. Aluminum Leg destroyed. Heat Sink severed. Acquired Med. Laser. L-31 Rogue destroyed. G-34 Mercenary suffers critical hit (Burn). G-34 Mercenary heat short circuits Heat Sink. G-34 Mercenary suffers critical hit (Burn). Sml. Laser melted. G-34 Mercenary destroyed. C-30 ARC bursts open, deploying its payload. S-10 Pest unfolds itself. S-10 Pest suffers critical hit (Burn). Ion Engine destroyed. S-10 Pest destroyed. Med. Laser destroyed. S-10 Pest destroyed. Map ----- +----------------------------------------------------+ | ?????????????????????????????? | | ?????????????????????????????? | | ?????????????????????????????? | | ?????????????????????????????? | | ?????????????????????????????? | | ?????????????????????????????? | | ?????????????????????????????? | | ?????????????????????????????? | | ?????????????????????????????? | | ?????????????????????????????? | | ?????? ????????????????????? | | ????## ???????????????????? | | ????# "???????????????????? | | ????# ""??????????????????? | | ????# ""??????????????????? | | ????# ???? ??????????????? | | ????# ?? ?????????????? | | ????? """ "??????????????? | | ????? """ "??????????????? | | ????? """ """ ???????????? | | ###### ????????????? | | # # ????????????? | | # !# """ """?? ?????????? | | # =*# """ """ ?????????? | | # %=#[ """ """ +????????? | | # !=@% [% #????????? | | # =#= % s % #????????? | | # # """ """ #????????? | | # ## """ """ #????????? | | # ## """ """ ##???????? | | ####### % ???? | | ????# t ???? | | ????# ##### ???? | | ????# #????##+####+######????? | | ????# #?????? ??????????????? | | ????# #??????????????????????? | | ????# #??????????????????????? | | ????# #??????????????????????? | | ????# #??????????????????????? | | ????# #??????????????????????? | | ???## ##?????????????????????? | | ???# #?????????????????????? | | ???# " #?????????????????????? | | ???# #?????????????????????? | | ???## #######????????????????? | | ????# ### #????????????????? | | ????# ## ?????????????????? | | ????# ## ##????????????????? | | ????# ## #????????????????? | | ????# ## ?#######+######### | +----------------------------------------------------+ Best States ------------- Heat Dissipation 38 Energy Generation 10 Energy Capacity 250 Matter Stores 300 Matter Capacity 300 Sight Range 16 Terrain Scan Density 10 Evasion (%) 55 Targeting Accuracy 5 Item Schematics ----------------- None Robot Schematics ------------------ None Fabricated ------------ Nothing Repaired ---------- Nothing Studied --------- None Alien Tech Used ----------------- None Achievements -------------- None Challenges ------------ None Game ------ Seed DecoyStorageSpoofer Manual? 0 Play Time 00:07:33 Cumulative 1.4 hours Start 2026.02.20 @ 16:53:23 End 2026.02.20 @ 16:58:43 Sessions 1 Manual Loads 0 Difficulty Rogue Special Mode None Game No. 7 Rogue 6 Adventurer 1 Explorer 0 Win Type - Total 0 Types 0/0/0/0/0/0/0/0/0/0 Lore% 1 Gallery% 5 Achievement% 6 Wizard Run 0 Options --------- Layout 1 ASCII 0 Keyboard 0 Movement Mouse Keybinds 0 Fullscreen 1 Font 32/SmallcapsGlow Map View 50x35 Zoom Use 0% Tactical HUD 0 Map Filters NONE Filters NONE Steam 1 RUN: 8d5eb424-a908-434c-901f-5fec6f842c41